Cogmind - Beta 9.4 *** ADVENTURER MODE // 2020.07.30 @ 18:18:24 Player: Scyralis Result: Self-destructed Performance ------------- Evolutions (1) 500 Regions Visited (2) 400 Robots Destroyed (14) 70 Value Destroyed (334) 334 Prototype IDs (3) 60 Alien Tech Used (0) 0 Bonus (0) 0 TOTAL SCORE: 1364 Bonus ------- None Cogmind --------- Core Integrity 259/400 Matter 300/300 Energy 159/160 System Corruption 0% Temperature Cool (10) Movement Hovering (60) Location -9/Materials Parts ------- > --- POWER (1) -------- Light Nuclear Core > --- PROPULSION (2) --- Hover Unit > --- UTILITY (4) ------ Weight Redist. System Sensor Array Signal Interpreter > --- WEAPON (2) ------- (None) > --- INVENTORY (4) ---- Datajack Peak State ------------ > --- POWER ------------ Light Nuclear Core > --- PROPULSION ------- Improved Aluminum Leg Wheel > --- UTILITY ---------- Improved Heat Sink Weight Redist. System Structural Scanner Sensor Array > --- WEAPON ----------- Heavy EM Pulse Gun Particle Gun > --- INVENTORY -------- Datajack [Rating: 17] Favorites ----------- Power Light Ion Engine Engine Light Ion Engine Power Core Light Nuclear Core Propulsion Wheel Leg Improved Aluminum Leg Wheel Wheel Hover Unit Hover Unit Flight Unit Flight Unit Utility Sensor Array Device Sensor Array Processor Terrain Scan Processor Weapon Heavy EM Pulse Gun Energy Gun Heavy EM Pulse Gun Special Melee Weapon Datajack Build | -11 -10 -9 ------- Run | Scr Mat Mat Slots Evolved 2 | . . 2 Power . | . . . Propulsion . | . . . Utility 2 | . . 2 Weapon . | . . . Parts Attached 23 | 4 5 14 Power 3 | 1 . 2 Engine 2 | 1 . 1 Core 1 | . . 1 Reactor . | . . . Propulsion 7 | 2 1 4 Treads . | . . . Leg 1 | . . 1 Wheel 4 | 2 . 2 Hover 1 | . . 1 Flight 1 | . 1 . Utility 7 | . 2 5 Device 5 | . 2 3 Storage . | . . . Processor 2 | . . 2 Hackware . | . . . Protection . | . . . Artifact . | . . . Weapon 6 | 1 2 3 Energy Gun 5 | 1 1 3 Energy Cannon . | . . . Ballistic Gun . | . . . Ballistic Cannon . | . . . Launcher . | . . . Special Weapon . | . . . Impact Weapon . | . . . Slashing Weapon . | . . . Piercing Weapon . | . . . Special Melee Weapon 1 | . 1 . Unidentified Prototypes 1 | . . 1 Parts Lost 4 | . . 4 Power 1 | . . 1 Propulsion 1 | . . 1 Utility 1 | . . 1 Weapon 1 | . . 1 Highest Loss Streak 1 | . . 1 Average Slot Usage (%) 67 | . 56 73 Engine 8 | . 14 5 Core 2 | . . 4 Wheel 12 | . 11 13 Hover 1 | . . 2 Flight 3 | . 8 . Device 23 | . 13 29 Processor 4 | . . 6 Energy Gun 9 | . 6 11 Naked Turns . | . . . Heaviest Build 14 | 4 6 14 Greatest Support 26 | 26 26 26 Greatest Overweight (x) 1 | . 1 1 Average Overweight (x) . | . . . Largest Inventory Capacity 4 | 4 4 4 Average Capacity 4 | 4 4 4 Most Carried 4 | 2 4 4 Average Carried 1 | . 1 1 Final Capacity 4 | 4 4 4 Final Carried 4 | . 4 1 Class Distribution -------------------- 75% | Mutant 21% | Scavenger-Mutant 3% | Scavenger-Scout Dominant Class ---------------- Mutant | -10/Materials Mutant | -9/Materials Resources | -11 -10 -9 ----------- Run | Scr Mat Mat Matter Collected 406 | 231 10 165 Remotely . | . . . Salvage Created 459 | . 106 353 Parts 32 | . 10 22 Haulers Intercepted 2 | . . 2 Recyclers Shooed 3 | . . 3 Parts Field Recycled . | . . . Retrieved Matter . | . . . Parts Self-Destructed . | . . . Prevented . | . . . Kills | -11 -10 -9 ------- Run | Scr Mat Mat Combat Hostiles Destroyed 10 | . 5 5 Guns 9 | . 5 4 AOE 1 | . . 1 Classes Destroyed 6 | . 2 4 Builder 1 | . . 1 Hauler 2 | . . 2 Watcher 1 | . . 1 Swarmer 4 | . 3 1 Grunt 4 | . 2 2 Sentry 2 | . . 2 Best Kill Streak 3 | . 2 3 Combat Bots Only 2 | . 2 2 Max Kills in Single Turn 2 | . 1 2 Gunslinging . | . . . Exploded 1 | . . 1 Melee . | . . . Uniques/NPCs Destroyed . | . . . Combat | -11 -10 -9 -------- Run | Scr Mat Mat Damage Taken 593 | . 217 376 Core 233 | . 92 141 Absorbed by Shields . | . . . Core Remaining (%) 81 | 100 63 . Volleys Fired 59 | . 18 41 Largest 2 | . 1 2 Hottest 110 | . 40 110 Shots Fired 70 | . 18 52 Gun 70 | . 18 52 Cannon . | . . . Launcher . | . . . Special . | . . . Kinetic . | . . . Thermal 30 | . 18 12 Explosive . | . . . Electromagnetic 40 | . . 40 Robot Hit Streak 16 | . 7 16 Robot Miss Streak 2 | . 2 2 Penetration Max . | . . . Secondary Targets . | . . . Shots Hit Robots 42 | . 15 27 Core Hits 21 | . 7 14 Critical Hits . | . . . Critical Kills . | . . . Critical Parts Destroyed . | . . . Melee Attacks . | . . . Impact . | . . . Slashing . | . . . Piercing . | . . . Sneak Attacks . | . . . Combat Hostiles . | . . . Follow-up Attacks . | . . . Damage Inflicted 1086 | . 173 913 Guns 658 | . 173 485 Cannons . | . . . Explosions 407 | . . 407 Melee . | . . . Ramming 21 | . . 21 Kinetic . | . . . Thermal 684 | . 173 511 Explosive . | . . . Electromagnetic 381 | . . 381 Impact . | . . . Slashing . | . . . Piercing . | . . . Highest Corruption . | . . . Average Corruption . | . . . Corruption Purged . | . . . Overload Shots . | . . . Overflow Damage 69 | . . 69 Projectiles . | . . . Explosions 69 | . . 69 Melee . | . . . Knockbacks . | . . . Impact . | . . . Kinetic . | . . . Secondary . | . . . Self-Inflicted Damage 10 | . . 10 Shots . | . . . Rammed 3 | . . 3 Targets Rammed 3 | . . 3 Kicked . | . . . Crushed . | . . . Highest Temperature 54 | . 30 54 Average Temperature 13 | . 12 13 Received Heat Transfer 276 | . 135 141 Siege Activations . | . . . Robots Corrupted . | . . . Combat Hostiles . | . . . Parts Fried 1 | . . 1 Impact Corruptions . | . . . Robots Melted . | . . . Combat Hostiles . | . . . Parts Melted 1 | . 1 . Heat Transferred 861 | . 375 486 Parts Sabotaged . | . . . Parts Stolen . | . . . Parts Stripped . | . . . Power Chain Reactions 1 | . . 1 Missiles Intercepted . | . . . Alert | -11 -10 -9 ------- Run | Scr Mat Mat Peak Influence 308 | . 140 308 Average Influence 126 | . 86 158 Maximum Alert Level 1 | . . 1 Low Security (%) 78 | 100 100 64 Level 1 21 | . . 35 Level 2 . | . . . Level 3 . | . . . Level 4 . | . . . Level 5 . | . . . High Security . | . . . Max Security . | . . . Squads Dispatched 2 | . 1 1 Investigation 2 | . 1 1 Extermination . | . . . Reinforcement . | . . . Assault . | . . . Garrison . | . . . Intercept . | . . . Construction Impeded . | . . . Haulers Reinforced . | . . . Stealth | -11 -10 -9 --------- Run | Scr Mat Mat Distress Signals 1 | . 1 . Communications Jammed . | . . . Distress Signals . | . . . Times Spotted 40 | . 21 19 Peak Tracking Total 7 | . 7 5 Tactical Retreats 7 | . 3 4 Traps | -11 -10 -9 ------- Run | Scr Mat Mat Traps Triggered 1 | . 1 . Indirectly . | . . . Trap Hack Attempts . | . . . Triggered . | . . . Disarmed . | . . . Reprogrammed . | . . . Reused . | . . . Traps Extracted . | . . . Installed . | . . . Triggered . | . . . Machines | -11 -10 -9 ---------- Run | Scr Mat Mat Machines Disabled 3 | . . 3 Max in Single Turn 3 | . . 3 Machines Sabotaged . | . . . Garrisons Compromised . | . . . Overloaded Fab Kills . | . . . Fab Network Shutdowns . | . . . Hacking | -11 -10 -9 --------- Run | Scr Mat Mat Machines Accessed 8 | . 4 4 Terminals 8 | . 4 4 Fabricators . | . . . Repair Stations . | . . . Recycling Units . | . . . Scanalyzers . | . . . Garrison Access . | . . . Total Hacks 31 | . 14 17 Successful 21 | . 10 11 Failed 10 | . 4 6 Catastrophic . | . . . Database Lockouts . | . . . Manual 24 | . 10 14 Terminals 31 | . 14 17 Fabricators . | . . . Repair Stations . | . . . Recycling Units . | . . . Scanalyzers . | . . . Garrison Access . | . . . Terminal Hacks 15 | . 6 9 Record 1 | . . 1 Robot Analysis 5 | . 3 2 Prototype ID Bank 1 | . . 1 Terminal Index 1 | . . 1 Alert Level 1 | . . 1 Locate Traps 1 | . 1 . Transport Status 1 | . . 1 Recall Investigation 3 | . 2 1 Hauler Manifests 1 | . . 1 Fabricator Hacks . | . . . Repair Station Hacks . | . . . Recycling Unit Hacks . | . . . Scanalyzer . | . . . Garrison Access Hacks . | . . . Unauthorized Hacks 18 | . 11 7 Terminals 6 | . 4 2 Track 2 | . 2 . Assimilate 1 | . 1 . Botnet 2 | . . 2 Detonate 1 | . 1 . Fabricators . | . . . Repair Stations . | . . . Recycling Units . | . . . Scanalyzers . | . . . Garrison Access . | . . . Data Cores Recovered . | . . . Used . | . . . Hacking Detections 8 | . 4 4 Full Trace Events 2 | . 1 1 Feedback Events . | . . . Feedback Blocked . | . . . Robot Schematics Acquired . | . . . Robots Built . | . . . Matter . | . . . Time . | . . . Total Robot Build Rating . | . . . Part Schematics Acquired . | . . . Parts Built . | . . . Matter . | . . . Time . | . . . Total Part Build Rating . | . . . Parts Repaired . | . . . Time . | . . . Parts Recycled . | . . . Recycled Matter . | . . . Retrieved Matter . | . . . Retrieved Components . | . . . Parts Scanalyzed . | . . . Part Schematics Acquired . | . . . Parts Damaged . | . . . Bothacking | -11 -10 -9 ------------ Run | Scr Mat Mat Used RIF Installer . | . . . Robots Hacked . | . . . Non-combat . | . . . Combat . | . . . Robot Hacks Applied . | . . . Relay Couplers Released . | . . . Robots Rewired . | . . . Allies Hacked . | . . . Hacks Repelled . | . . . Allies | -11 -10 -9 -------- Run | Scr Mat Mat Total Allies . | . . . Largest Group . | . . . Highest-Rated Group . | . . . Highest-Rated Ally . | . . . Total Orders . | . . . Ally Attacks . | . . . Total Damage . | . . . Kills . | . . . Allies Corrupted . | . . . Allies Melted . | . . . Intel | -11 -10 -9 ------- Run | Scr Mat Mat Robot Analysis Total 5 | . 3 2 Derelict Logs Recovered . | . . . Drone Launches . | . . . Drone Recoveries . | . . . Exploration | -11 -10 -9 ------------- Run | Scr Mat Mat Turns Passed 726 | 31 252 443 Spaces Moved 650 | 27 263 360 Core 3 | 3 . . Treads . | . . . Legs 21 | . . 21 Wheels 342 | 24 70 248 Hover 85 | . . 85 Flight 199 | . 193 6 Fastest Speed 40 | 50 40 60 Average Speed 77 | 85 76 78 Slowest Speed 125 | 90 125 120 Overloaded Moves . | . . . Propulsion Burnouts . | . . . Robots Hopped . | . . . Cave-ins Triggered . | . . . Exploration Rate (%) 30 | 4 57 30 Regions Visited 2 Branch Regions . Pre-discovered Areas . | . . . Known Exits Taken . | . . . Unknown Exits Taken 2 | 1 1 . Scrap Searched . | . . . Spaces Dug . | . . . Terrain Destroyed 55 | . . 55 Melee . | . . . Projectile . | . . . AOE 55 | . . 55 Actions | -11 -10 -9 --------- Run | Scr Mat Mat Total 805 | 34 298 473 Wait 36 | . 2 34 Move 648 | 26 262 360 Hop . | . . . Pick Up 21 | 4 5 12 Fast Attach . | . . . Attach 22 | 4 5 13 Detach 4 | . 4 . Swap 1 | . . 1 Drop 11 | . 2 9 Fire 59 | . 18 41 Melee . | . . . Ram 3 | . . 3 Kick . | . . . Crush . | . . . Escape Stasis . | . . . Rewire . | . . . Trap . | . . . Miscellaneous . | . . . Route ------- -11/Scrapyard -10/Materials -9/Materials (discovered 1 exit: [*Min]) History --------- Turn | Location | Event 16 | -11/Scrapyard | Discovered new exit (range 14) 32 | -11/Scrapyard | Entered Materials 277 | -10/Materials | Discovered new exit (range 8) 284 | -10/Materials | Entered another Materials area 284 | -9/Materials | Evolved 2 slots: Utility x2 318 | -9/Materials | Build established: Mutant 650 | -9/Materials | Discovered new exit (range 13) 727 | -9/Materials | Self-destructed Last Messages --------------- 00634_ W-16 Scout destroyed. 00640_ Acquired Hover Unit. 00642_ Dropped Imp. Aluminum Leg. 00642_ Dropped Hvy. EM Pulse Gun. 00643_ K-01 Serf collects debris. 00643_ Acquired Signal Interpreter. 00644_ Dropped Imp. Heat Sink. 00646_ Acquired 29 matter. 00648_ K-01 Serf collects debris. 00650_ EXIT=FOUND 00670_ Connecting with Terminal... >>Index(Terminals) Found 12 terminals. Downloaded coordinate data. 00673_ C-30 ARC bursts open, deploying its payload. 00673_ S-10 Pest unfolds itself. 00673_ S-10 Pest destroyed. 00673_ Structural Scanner destroyed. 00675_ K-01 Serf collects debris. 00715_ Particle Gun destroyed. Map ----- +----------------------------------------------------+ | ????????????????????# ##+###### | | ????????????????????# # # | | ????????????????????# # # | | #####???????????????# # # | | #???????????????+ # # | | """ #???????????????# # # | | """ #????????#??????# + # | | """ #????????# ????# # # | | = ######???# ??# # # | | = "# # ###?# # # # | | +##""""""""#?# + + # | | # " "############ # # | | # " " #?????????# ######### | | #### " #???????### ###?????? | | ! / ########### #?????? | | #"### # ####??? | | ### # + T #??? | | # # ## #??? | | # ###+####### g ## #??? | | # # #??###g#### #??? | | " " # #??# # #??? | | "" " # #??# ! # #??? | | "" "" # "T" #??# # #??? | | """"#""""## """ #??# # #??? | | """ ####### #??# # #??? | | ###???###/####??# @ # #??? | | ##+## ####### #?????##t##/## #??? | | # # #??????# #??? | | [ # """ # #####??# s #??? | | " [[ # """ # #??# #??? | | " [[ + """ # #### s #??? | | " # # #??? | | # """ + s ##??? | | # """ # "#???? | | # """ # "#???? | | ####### # u "#???? | | ??????####### T#???? | | ????????????# "#???? | | ????????????# "#???? | | ??????????? + "#???? | | ?????????? # #???? | | ????????? # #???? | | ????????###?# **! #???? | | ???????????# =! **! #???? | | ???????????# ! *! #???? | | ???????????# #???? | | ???????????+ #???? | | ???????????# #???? | | ???????????# = #???? | | ???????????? *%[ #???? | +----------------------------------------------------+ Best States ------------- Heat Dissipation 42 Energy Generation 14 Energy Capacity 280 Matter Stores 300 Matter Capacity 300 Sight Range 16 Robot Scan Range 10 Terrain Scan Density 85 Additional Mass Support 6 Resistance: KI 20 Resistance: TH 20 Resistance: EX 20 Resistance: EM 20 Resistance: I 20 Resistance: S 20 Resistance: P 20 Evasion (%) 62 Offensive Hacking 10 Item Schematics ----------------- None Robot Schematics ------------------ None Fabricated ------------ Nothing Alien Tech Used ----------------- None Achievements -------------- None Challenges ------------ None Game ------ Seed FissionIonicDiverter Manual? 0 Play Time 00:10:13 Cumulative 155.1 hours Start 2020.07.30 @ 18:09:48 End 2020.07.30 @ 18:18:24 Sessions 1 Manual Loads 0 Difficulty Adventurer Special Mode None Game No. 70 Rogue 0 Adventurer 70 Explorer 0 Win Type - Total 1 Types 1/0/0/0/0/0/0 Lore% 29 Gallery% 52 Achievement% 38 Wizard Run 0 Options --------- ASCII 0 Keyboard 0 Movement Numpad Keybinds 0 Fullscreen 0 Font 12/Smallcaps Map View 83x54 Tactical HUD 1 Map Filters NONE Filters NONE Steam X RUN: 1df138ef-cfe9-483f-b812-bc31c06c5648